fUSD/lending_fUSD_20250105
["ID","MTS","AMOUNT","RATE_DAILY","PERIOD"]
[347710341,1736076648125,-500.0,8.767e-05,2]
[347710343,1736076648140,-500.0,8.767e-05,2]
[347710345,1736076648153,-500.0,8.767e-05,2]
[347710348,1736076648165,-500.0,8.767e-05,2]
[347710350,1736076648176,-660.79,8.767e-05,2]
[347710352,1736076648187,-500.0,8.767e-05,2]
[347710354,1736076648198,-500.0,8.767e-05,2]
[347710357,1736076648211,-500.0,8.767e-05,2]
[347710359,1736076648223,-561.99,8.767e-05,2]
[347710361,1736076648236,-500.0,8.767e-05,2]
[347710364,1736076648248,-500.0,8.767e-05,2]
[347710366,1736076648260,-500.0,8.767e-05,2]
[347710368,1736076648272,-500.0,8.767e-05,2]
[347710370,1736076648284,-622.00858151,8.767e-05,2]
[347710373,1736076648296,-500.0,8.767e-05,2]
[347710375,1736076648308,-500.0,8.767e-05,2]
[347710377,1736076648320,-500.0,8.767e-05,2]
[347710379,1736076648332,-500.0,8.767e-05,2]
[347710381,1736076648343,-500.0,8.767e-05,2]
[347710383,1736076648354,-1326.19,8.767e-05,2]
[347710385,1736076648364,-500.0,8.767e-05,2]
[347710388,1736076648375,-212.95,8.767e-05,2]
[347710390,1736076648387,-249.0,8.767e-05,2]
[347710392,1736076648400,-500.0,8.767e-05,2]
[347710394,1736076648412,-500.0,8.767e-05,2]
[347710397,1736076648423,-500.0,8.767e-05,2]
[347710399,1736076648434,-500.0,8.767e-05,2]
[347710401,1736076648446,-500.0,8.767e-05,2]
[347710403,1736076648458,-816.38,8.767e-05,2]
[347710406,1736076648471,-500.0,8.767e-05,2]
[347710408,1736076648483,-640.6,8.767e-05,2]
[347710410,1736076648495,-500.0,8.767e-05,2]
[347710413,1736076648510,-500.0,8.767e-05,2]
[347710415,1736076648521,-500.0,8.767e-05,2]
[347710417,1736076648532,-573.82,8.767e-05,2]
[347710419,1736076648546,-500.0,8.767e-05,2]
[347710421,1736076648557,-500.0,8.767e-05,2]
[347710424,1736076648571,-1289.07,8.767e-05,2]
[347710426,1736076648584,-500.0,8.767e-05,2]
[347710428,1736076648596,-601.33,8.767e-05,2]
[347710431,1736076648608,-500.0,8.767e-05,2]
[347710433,1736076648620,-500.0,8.767e-05,2]
[347710435,1736076648631,-500.0,8.767e-05,2]
[347710437,1736076648643,-443.62633174,8.767e-05,2]
[347710439,1736076648655,-2326.77,8.767e-05,2]
[347710442,1736076648671,-788.81,8.767e-05,2]
[347710444,1736076648684,-500.0,8.767e-05,2]
[347710446,1736076648696,-1211.06,8.767e-05,2]
[347710448,1736076648707,-500.0,8.767e-05,2]
[347710451,1736076648718,-500.0,8.767e-05,2]
[347710453,1736076648729,-500.0,8.767e-05,2]
[347710455,1736076648739,-1278.06,8.767e-05,2]
[347710457,1736076648749,-500.0,8.767e-05,2]
[347710459,1736076648761,-694.83,8.767e-05,2]
[347710461,1736076648771,-1063.9,8.767e-05,2]
[347710464,1736076648783,-1368.3,8.767e-05,2]
[347710466,1736076648796,-536.36,8.767e-05,2]
[347710468,1736076648808,-2537.86,8.767e-05,2]
[347710470,1736076648818,-737.23,8.767e-05,2]
[347710472,1736076648827,-239.56,8.767e-05,2]
[347710475,1736076648837,-758.55,8.767e-05,2]
[347710477,1736076648846,-500.0,8.767e-05,2]
[347710479,1736076648857,-500.0,8.767e-05,2]
[347710481,1736076648868,-500.0,8.767e-05,2]
[347710483,1736076648880,-500.0,8.767e-05,2]
[347710485,1736076648893,-513.17,8.767e-05,2]
[347710488,1736076648905,-500.0,8.767e-05,2]
[347710490,1736076648916,-500.0,8.767e-05,2]
[347710492,1736076648927,-500.0,8.767e-05,2]
[347710494,1736076648937,-500.0,8.767e-05,2]
[347710496,1736076648946,-500.0,8.767e-05,2]
[347710498,1736076648956,-1162.18,8.767e-05,2]
[347710500,1736076648968,-500.0,8.767e-05,2]
[347710502,1736076648978,-500.0,8.767e-05,2]
[347710505,1736076648989,-1431.72,8.767e-05,2]
[347710507,1736076648999,-500.0,8.767e-05,2]
[347710509,1736076649010,-1706.71,8.767e-05,2]
[347710511,1736076649020,-500.0,8.767e-05,2]
[347710513,1736076649031,-535.23,8.767e-05,2]
[347710515,1736076649042,-500.0,8.767e-05,2]
[347710518,1736076649052,-825.63,8.767e-05,2]
[347710520,1736076649063,-704.66,8.767e-05,2]
[347710522,1736076649073,-2699.32,8.767e-05,2]
[347710524,1736076649084,-500.0,8.767e-05,2]
[347710526,1736076649094,-602.7,8.767e-05,2]
[347710528,1736076649105,-500.0,8.767e-05,2]
[347710530,1736076649116,-500.0,8.767e-05,2]
[347710532,1736076649127,-1673.76,8.767e-05,2]
[347710535,1736076649138,-872.87,8.767e-05,2]
[347710537,1736076649148,-865.52,8.767e-05,2]
[347710539,1736076649159,-1352.04,8.767e-05,2]
[347710541,1736076649170,-699.36,8.767e-05,2]
[347710543,1736076649182,-2700.57,8.767e-05,2]
[347710545,1736076649192,-402.55,8.767e-05,2]
[347710547,1736076649203,-500.0,8.767e-05,2]
[347710550,1736076649214,-1106.23,8.767e-05,2]
[347710552,1736076649224,-577.44,8.767e-05,2]
[347710554,1736076649236,-977.55,8.767e-05,2]
[347710556,1736076649247,-520.59,8.767e-05,2]
[347710558,1736076649257,-500.0,8.767e-05,2]
[347710560,1736076649268,-500.0,8.767e-05,2]
[347710562,1736076649279,-1914.19,8.767e-05,2]
[347710565,1736076649290,-1734.47,8.767e-05,2]
[347710567,1736076649300,-500.0,8.767e-05,2]
[347710569,1736076649311,-600.09,8.767e-05,2]
[347710571,1736076649322,-500.0,8.767e-05,2]
[347710573,1736076649333,-876.88,8.767e-05,2]
[347710575,1736076649344,-500.0,8.767e-05,2]
[347710577,1736076649354,-500.0,8.767e-05,2]
[347710580,1736076649365,-865.64,8.767e-05,2]
[347710582,1736076649376,-500.0,8.767e-05,2]
[347710584,1736076649387,-731.69,8.767e-05,2]
[347710586,1736076649397,-500.0,8.767e-05,2]
[347710588,1736076649409,-500.0,8.767e-05,2]
[347710590,1736076649420,-500.0,8.767e-05,2]
[347710592,1736076649432,-500.0,8.767e-05,2]
[347710594,1736076649442,-500.0,8.767e-05,2]
[347710597,1736076649453,-580.28,8.767e-05,2]
[347710599,1736076649464,-529.56,8.767e-05,2]
[347710601,1736076649475,-500.0,8.767e-05,2]
[347710603,1736076649486,-500.0,8.767e-05,2]
[347710605,1736076649497,-160.2,8.767e-05,2]
[347710607,1736076649511,-694.57,8.767e-05,2]
[347710610,1736076649522,-1853.7,8.767e-05,2]
[347710612,1736076649533,-988.58,8.767e-05,2]
[347710614,1736076649543,-681.33,8.767e-05,2]
[347710616,1736076649555,-500.0,8.767e-05,2]
[347710618,1736076649565,-500.0,8.767e-05,2]
[347710620,1736076649578,-591.11,8.767e-05,2]
[347710622,1736076649589,-1976.44,8.767e-05,2]
[347710624,1736076649600,-500.0,8.767e-05,2]
[347710626,1736076649611,-732.16,8.767e-05,2]
[347710629,1736076649622,-500.0,8.767e-05,2]
[347710631,1736076649632,-805.68,8.767e-05,2]
[347710633,1736076649644,-278.1,8.767e-05,2]
[347710635,1736076649655,-527.7,8.767e-05,2]
[347710637,1736076649666,-500.0,8.767e-05,2]
[347710639,1736076649676,-1068.56,8.767e-05,2]
[347710641,1736076649687,-1126.8,8.767e-05,2]
[347710643,1736076649698,-1497.15,8.767e-05,2]
[347710645,1736076649708,-552.25,8.767e-05,2]
[347710648,1736076649720,-853.95,8.767e-05,2]
[347710650,1736076649730,-1890.23,8.767e-05,2]
[347710652,1736076649741,-617.77,8.767e-05,2]
[347710654,1736076649752,-1545.9,8.767e-05,2]
[347710656,1736076649762,-500.0,8.767e-05,2]
[347710658,1736076649773,-500.0,8.767e-05,2]
[347710660,1736076649783,-500.0,8.767e-05,2]
[347710663,1736076649794,-761.95,8.767e-05,2]
[347710665,1736076649805,-500.0,8.767e-05,2]
[347710667,1736076649815,-1301.13,8.767e-05,2]
[347710668,1736076649826,-656.38,8.767e-05,2]
[347710669,1736076649837,-596.3,8.767e-05,2]
[347710670,1736076649848,-3870.26,8.767e-05,2]
[347710671,1736076649858,-500.0,8.767e-05,2]
[347710672,1736076649869,-500.0,8.767e-05,2]
[347710673,1736076649879,-607.28,8.767e-05,2]
[347710674,1736076649890,-601.28,8.767e-05,2]
[347710675,1736076649901,-1197.33,8.767e-05,2]
[347710676,1736076649911,-500.0,8.767e-05,2]
[347710677,1736076649922,-500.0,8.767e-05,2]
[347710678,1736076649933,-3285.56,8.767e-05,2]
[347710679,1736076649943,-500.0,8.767e-05,2]
[347710681,1736076649954,-500.0,8.767e-05,2]
[347710683,1736076649965,-655.16,8.767e-05,2]
[347710686,1736076649976,-581.31,8.767e-05,2]
[347710688,1736076649991,-518.93,8.767e-05,2]
[347710690,1736076650001,-584.59,8.767e-05,2]
[347710692,1736076650011,-500.0,8.767e-05,2]
[347710695,1736076650022,-732.58,8.767e-05,2]
[347710697,1736076650032,-2323.52,8.767e-05,2]
[347710699,1736076650042,-500.0,8.767e-05,2]
[347710701,1736076650052,-500.0,8.767e-05,2]
[347710703,1736076650063,-500.0,8.767e-05,2]
[347710705,1736076650073,-500.0,8.767e-05,2]
[347710707,1736076650083,-500.0,8.767e-05,2]
[347710709,1736076650093,-1017.19,8.767e-05,2]
[347710711,1736076650104,-500.0,8.767e-05,2]
[347710714,1736076650114,-500.0,8.767e-05,2]
[347710716,1736076650124,-764.71,8.767e-05,2]
[347710718,1736076650134,-273.49,8.767e-05,2]
[347710720,1736076650145,-695.42,8.767e-05,2]
[347710722,1736076650155,-881.06,8.767e-05,2]
[347710724,1736076650165,-5299.64,8.767e-05,2]
[347710726,1736076650175,-647.35,8.767e-05,2]
[347710728,1736076650185,-2167.22,8.767e-05,2]
[347710730,1736076650195,-800.0,8.767e-05,2]
[347710732,1736076650206,-5135.6,8.767e-05,2]
[347710735,1736076650216,-500.0,8.767e-05,2]
[347710737,1736076650226,-524.08418131,8.767e-05,2]
[347710739,1736076650236,-500.0,8.767e-05,2]
[347710741,1736076650246,-500.0,8.767e-05,2]
[347710743,1736076650256,-1392.32,8.767e-05,2]
[347710745,1736076650266,-804.12,8.767e-05,2]
[347710747,1736076650277,-1033.91,8.767e-05,2]
[347710749,1736076650287,-500.0,8.767e-05,2]
[347710751,1736076650298,-349.0,8.767e-05,2]
[347710754,1736076650309,-500.0,8.767e-05,2]
[347710756,1736076650320,-652.05,8.767e-05,2]
[347710758,1736076650331,-756.85,8.767e-05,2]
[347710760,1736076650342,-617.78,8.767e-05,2]
[347710762,1736076650352,-500.0,8.767e-05,2]
[347710764,1736076650363,-3155.83,8.767e-05,2]
[347710767,1736076650374,-1085.24,8.767e-05,2]
[347710769,1736076650384,-938.7,8.767e-05,2]
[347710771,1736076650397,-473.72,8.767e-05,2]
[347710773,1736076650410,-500.0,8.767e-05,2]
[347710775,1736076650420,-1215.77,8.767e-05,2]
[347710777,1736076650431,-500.0,8.767e-05,2]
[347710779,1736076650442,-3948.78,8.767e-05,2]
[347710782,1736076650453,-500.0,8.767e-05,2]
[347710784,1736076650464,-887.75,8.767e-05,2]
[347710786,1736076650475,-690.62,8.767e-05,2]
[347710788,1736076650485,-500.0,8.767e-05,2]
[347710790,1736076650496,-1807.32,8.767e-05,2]
[347710793,1736076650512,-878.23,8.767e-05,2]
[347710795,1736076650522,-1172.47,8.767e-05,2]
[347710797,1736076650532,-520.62,8.767e-05,2]
[347710799,1736076650543,-500.0,8.767e-05,2]
[347710801,1736076650553,-1063.47,8.767e-05,2]
[347710803,1736076650563,-932.02,8.767e-05,2]
[347710805,1736076650574,-2594.22,8.767e-05,2]
[347710807,1736076650586,-500.0,8.767e-05,2]
[347710809,1736076650596,-636.64,8.767e-05,2]
[347710812,1736076650607,-500.0,8.767e-05,2]
[347710814,1736076650617,-650.42,8.767e-05,2]
[347710816,1736076650627,-1337.11,8.767e-05,2]
[347710818,1736076650638,-500.0,8.767e-05,2]
[347710820,1736076650648,-151.405091,8.767e-05,2]
[347710822,1736076650657,-500.0,8.767e-05,2]
[347710823,1736076650667,-500.0,8.767e-05,2]
[347710824,1736076650677,-954.75,8.767e-05,2]
[347710825,1736076650687,-500.0,8.767e-05,2]
[347710826,1736076650697,-698.14,8.767e-05,2]
[347710827,1736076650707,-500.0,8.767e-05,2]
[347710828,1736076650717,-740.03,8.767e-05,2]
[347710829,1736076650727,-500.0,8.767e-05,2]
[347710830,1736076650737,-500.0,8.767e-05,2]
[347710832,1736076650747,-500.0,8.767e-05,2]
[347710834,1736076650757,-500.0,8.767e-05,2]
[347710836,1736076650767,-684.78,8.767e-05,2]
[347710838,1736076650777,-500.0,8.767e-05,2]
[347710840,1736076650787,-500.0,8.767e-05,2]
[347710842,1736076650798,-516.75,8.767e-05,2]
[347710844,1736076650807,-500.0,8.767e-05,2]
[347710846,1736076650817,-500.0,8.767e-05,2]
[347710848,1736076650828,-725.43,8.767e-05,2]
[347710851,1736076650838,-722.38,8.767e-05,2]
[347710853,1736076650847,-500.0,8.767e-05,2]
[347710855,1736076650859,-500.0,8.767e-05,2]
[347710857,1736076650869,-500.0,8.767e-05,2]
[347710859,1736076650879,-656.73,8.767e-05,2]
[347710861,1736076650888,-1928.88,8.767e-05,2]
[347710863,1736076650898,-529.75,8.767e-05,2]
[347710865,1736076650910,-894.28,8.767e-05,2]
[347710867,1736076650919,-500.0,8.767e-05,2]
[347710869,1736076650930,-500.0,8.767e-05,2]
[347710871,1736076650939,-500.0,8.767e-05,2]
[347710873,1736076650950,-159.068643,8.767e-05,2]
[347710874,1736076650960,-542.34,8.767e-05,2]
[347710875,1736076650971,-500.0,8.767e-05,2]
[347710876,1736076650981,-500.0,8.767e-05,2]
[347710877,1736076650991,-1050.68,8.767e-05,2]
[347710878,1736076651001,-1136.03,8.767e-05,2]
[347710879,1736076651011,-500.0,8.767e-05,2]
[347710880,1736076651021,-785.85,8.767e-05,2]
[347710881,1736076651031,-5182.33,8.767e-05,2]
[347710882,1736076651041,-842.26,8.767e-05,2]
[347710883,1736076651051,-532.18,8.767e-05,2]
[347710884,1736076651061,-567.04,8.767e-05,2]
[347710885,1736076651071,-500.0,8.767e-05,2]
[347710886,1736076651081,-661.2,8.767e-05,2]
[347710887,1736076651091,-2393.03,8.767e-05,2]
[347710888,1736076651101,-587.39,8.767e-05,2]
[347710889,1736076651112,-3871.94,8.767e-05,2]
[347710890,1736076651122,-820.53,8.767e-05,2]
[347710891,1736076651132,-517.23,8.767e-05,2]
[347710892,1736076651143,-812.18,8.767e-05,2]
[347710893,1736076651153,-500.0,8.767e-05,2]
[347710894,1736076651163,-508.09,8.767e-05,2]
[347710895,1736076651173,-502.48,8.767e-05,2]
[347710896,1736076651183,-500.0,8.767e-05,2]
[347710897,1736076651194,-500.0,8.767e-05,2]
[347710898,1736076651204,-500.0,8.767e-05,2]
[347710899,1736076651214,-500.0,8.767e-05,2]
[347710900,1736076651224,-1722.13,8.767e-05,2]
[347710901,1736076651234,-2435.43,8.767e-05,2]
[347710902,1736076651244,-1479.15,8.767e-05,2]
[347710903,1736076651254,-2629.55,8.767e-05,2]
[347710904,1736076651264,-775.39,8.767e-05,2]
[347710905,1736076651275,-500.0,8.767e-05,2]
[347710906,1736076651286,-500.0,8.767e-05,2]
[347710907,1736076651296,-1084.85,8.767e-05,2]
[347710908,1736076651307,-1479.96,8.767e-05,2]
[347710909,1736076651317,-5610.7,8.767e-05,2]
[347710910,1736076651328,-642.1,8.767e-05,2]
[347710911,1736076651338,-857.12,8.767e-05,2]
[347710912,1736076651348,-4352.51,8.767e-05,2]
[347710913,1736076651358,-753.42,8.767e-05,2]
[347710914,1736076651369,-4189.49,8.767e-05,2]
[347710915,1736076651379,-500.0,8.767e-05,2]
[347710916,1736076651389,-1274.97,8.767e-05,2]
[347710917,1736076651399,-573.56,8.767e-05,2]
[347710918,1736076651409,-500.0,8.767e-05,2]
[347710919,1736076651419,-500.0,8.767e-05,2]
[347710920,1736076651429,-500.0,8.767e-05,2]
[347710921,1736076651441,-1788.55,8.767e-05,2]
[347710922,1736076651451,-631.66,8.767e-05,2]
[347710923,1736076651461,-904.09,8.767e-05,2]
[347710924,1736076651471,-1715.62,8.767e-05,2]
[347710925,1736076651481,-500.0,8.767e-05,2]
[347710926,1736076651492,-1090.03,8.767e-05,2]
[347710927,1736076651504,-1668.23,8.767e-05,2]
[347710928,1736076651514,-1296.99,8.767e-05,2]
[347710929,1736076651524,-1245.54,8.767e-05,2]
[347710930,1736076651536,-500.0,8.767e-05,2]
[347710931,1736076651547,-1017.28,8.767e-05,2]
[347710932,1736076651558,-500.0,8.767e-05,2]
[347710933,1736076651568,-5127.87,8.767e-05,2]
[347710934,1736076651579,-1218.51,8.767e-05,2]
[347710935,1736076651591,-1372.97,8.767e-05,2]
[347710936,1736076651601,-500.0,8.767e-05,2]
[347710937,1736076651933,-560.67,8.767e-05,2]
[347710938,1736076652004,-500.0,8.767e-05,2]
[347710939,1736076652016,-1408.39,8.767e-05,2]
[347710940,1736076652026,-1419.68,8.767e-05,2]
[347710942,1736076652035,-500.0,8.767e-05,2]
[347710943,1736076652045,-1751.39,8.767e-05,2]
[347710944,1736076652054,-500.0,8.767e-05,2]
[347710945,1736076652063,-500.0,8.767e-05,2]
[347710946,1736076652074,-500.0,8.767e-05,2]
[347710947,1736076652083,-644.11,8.767e-05,2]
[347710948,1736076652092,-500.0,8.767e-05,2]
[347710949,1736076652102,-500.0,8.767e-05,2]
[347710950,1736076652112,-500.0,8.767e-05,2]
[347710951,1736076652123,-500.0,8.767e-05,2]
[347710952,1736076652132,-500.0,8.767e-05,2]
[347710953,1736076652141,-16743.84,8.767e-05,2]
[347710954,1736076652151,-557.05,8.767e-05,2]
[347710955,1736076652160,-500.0,8.767e-05,2]
[347710956,1736076652169,-998.13,8.767e-05,2]
[347710957,1736076652179,-674.63,8.767e-05,2]
[347710958,1736076652188,-1623.52,8.767e-05,2]
[347710959,1736076652199,-500.0,8.767e-05,2]
[347710960,1736076652208,-1744.57,8.767e-05,2]
[347710961,1736076652217,-455.24,8.767e-05,2]
[347710962,1736076652227,-500.0,8.767e-05,2]
[347710963,1736076652237,-500.0,8.767e-05,2]
[347710964,1736076652247,-500.0,8.767e-05,2]
[347710965,1736076652256,-1111.28,8.767e-05,2]
[347710966,1736076652266,-3530.55,8.767e-05,2]
[347710967,1736076652276,-500.0,8.767e-05,2]
[347710968,1736076652285,-750.33,8.767e-05,2]
[347710969,1736076652295,-6549.87,8.767e-05,2]
[347710970,1736076652306,-2059.92,8.767e-05,2]
[347710971,1736076652317,-1216.86,8.767e-05,2]
[347710972,1736076652327,-500.0,8.767e-05,2]
[347710973,1736076652337,-1861.52,8.767e-05,2]
[347710974,1736076652346,-500.0,8.767e-05,2]
[347710975,1736076652355,-547.16,8.767e-05,2]
[347710976,1736076652364,-747.43,8.767e-05,2]
[347710977,1736076652374,-1221.81,8.767e-05,2]
[347710978,1736076652384,-1317.31,8.767e-05,2]
[347710979,1736076652393,-5390.16,8.767e-05,2]
[347710980,1736076652402,-326.68844624,8.767e-05,2]
[347710981,1736076654292,-500.0,8.219e-05,2]
[347710982,1736076654302,-500.0,8.219e-05,2]
[347710983,1736076654311,-500.0,8.219e-05,2]
[347710984,1736076654321,-500.0,8.219e-05,2]
[347710985,1736076654330,-682.52155376,8.767e-05,2]
[347710986,1736076654339,-2881.15,8.767e-05,2]
[347710987,1736076654348,-928.39,8.767e-05,2]
[347710988,1736076654358,-701.81,8.767e-05,2]
[347710989,1736076654368,-2248.1,8.767e-05,2]
[347710990,1736076654378,-2069.18,8.767e-05,2]
[347710991,1736076654387,-500.0,8.767e-05,2]
[347710992,1736076654398,-1539.39,8.767e-05,2]
[347710993,1736076654407,-673.51,8.767e-05,2]
[347710994,1736076654417,-7370.29,8.767e-05,2]
[347710995,1736076654427,-1280.12,8.767e-05,2]
[347710996,1736076654437,-10893.72,8.767e-05,2]
[347710997,1736076654446,-1373.2,8.767e-05,2]
[347710998,1736076654455,-1036.28,8.767e-05,2]
[347710999,1736076654465,-4622.84,8.767e-05,2]
[347711000,1736076654475,-3815.44,8.767e-05,2]
[347711001,1736076654484,-1642.33,8.767e-05,2]
[347711002,1736076654493,-4597.68,8.767e-05,2]
[347711003,1736076654506,-500.0,8.767e-05,2]
[347711004,1736076654516,-1339.88,8.767e-05,2]
[347711005,1736076654526,-4184.98,8.767e-05,2]
[347711006,1736076654536,-1151.92,8.767e-05,2]
[347711007,1736076654546,-500.0,8.767e-05,2]
[347711008,1736076654555,-500.0,8.767e-05,2]
[347711009,1736076654565,-1607.87,8.767e-05,2]
[347711010,1736076654574,-500.0,8.767e-05,2]
[347711011,1736076654584,-10588.71,8.767e-05,2]
[347711012,1736076654594,-672.89,8.767e-05,2]
[347711013,1736076654604,-500.0,8.767e-05,2]
[347711014,1736076654614,-1591.21,8.767e-05,2]
[347711015,1736076654623,-5298.15,8.767e-05,2]
[347711016,1736076654633,-5237.54,8.767e-05,2]
[347711017,1736076654643,-2075.87,8.767e-05,2]
[347711018,1736076654652,-2596.58,8.767e-05,2]
[347711019,1736076654662,-1342.26,8.767e-05,2]
[347711020,1736076654671,-503.36357423,8.767e-05,2]
[347711021,1736076654681,-500.0,8.767e-05,2]
[347711022,1736076654690,-1224.92,8.767e-05,2]
[347711023,1736076654699,-1877.90487201,8.767e-05,2]
[347711024,1736076654720,-500.0,8.493e-05,2]
[347711025,1736076654730,-2685.60512799,8.767e-05,2]
[347711026,1736076654739,-2583.58,8.767e-05,2]
[347711027,1736076654748,-500.0,8.767e-05,2]
[347711028,1736076654757,-500.0,8.767e-05,2]
[347711029,1736076654767,-657.55,8.767e-05,2]
[347711030,1736076654776,-682.38,8.767e-05,2]
[347711031,1736076654786,-942.05,8.767e-05,2]
[347711032,1736076654796,-500.0,8.767e-05,2]
[347711033,1736076654806,-729.18,8.767e-05,2]
[347711034,1736076654816,-500.0,8.767e-05,2]
[347711035,1736076654826,-500.0,8.767e-05,2]
[347711036,1736076654835,-1304.69,8.767e-05,2]
[347711037,1736076654845,-1711.65,8.767e-05,2]
[347711038,1736076654854,-682.24,8.767e-05,2]
[347711039,1736076654864,-1616.99,8.767e-05,2]
[347711040,1736076654873,-1574.88,8.767e-05,2]
[347711041,1736076654883,-29.20487521,8.767e-05,2]
[347711042,1736076654895,-470.79512479,8.767e-05,2]
[347711043,1736076654904,-500.0,8.767e-05,2]
[347711044,1736076654914,-615.67,8.767e-05,2]
[347711045,1736076654923,-500.0,8.767e-05,2]
[347711046,1736076654932,-1293.53,8.767e-05,2]
[347711047,1736076654942,-1014.3506975,8.767e-05,2]
[347711048,1736076654954,-277.6293025,8.767e-05,2]
[347711049,1736076654963,-655.53,8.767e-05,2]
[347711050,1736076654973,-189.88760369,8.767e-05,2]
[347711051,1736076654984,-543.50239631,8.767e-05,2]
[347711052,1736076654995,-500.0,8.767e-05,2]
[347711053,1736076655004,-873.96760369,8.767e-05,2]
[347711054,1736076655020,-531.52239631,8.767e-05,2]
[347711055,1736076655030,-150.0,8.788e-05,2]
[347711056,1736076655039,-872.0,8.797e-05,2]
[347711057,1736076655049,-1900.0,8.8e-05,3]
[347711058,1736076655059,-152.770347,8.863e-05,2]
[347711059,1736076655068,-150.0,8.877e-05,2]
[347711060,1736076655077,-150.0,8.877e-05,2]
[347711061,1736076655087,-21258.1563067,8.888e-05,2]
[347711062,1736076655099,-3633.41128201,8.888e-05,2]
[347711063,1736076655110,-28172.92811534,8.888e-05,2]
[347711064,1736076655121,-623.64337499,8.888e-05,2]
[347711065,1736076655132,-1455.02450611,8.888e-05,2]
[347711066,1736076655144,-602.36438288,8.888e-05,2]
[347711067,1736076655155,-7410.32969147,8.888e-05,2]
[347711068,1736076655175,-358.79,8.767e-05,2]
[347711069,1736076655185,-46848.71000003,8.888e-05,2]
[347711070,1736076655196,-9666.41835113,8.888e-05,2]
[347711071,1736076655207,-4748.00589731,8.888e-05,2]
[347711072,1736076655218,-34756.97629344,8.888e-05,2]
[347711073,1736076655230,-995.87999847,8.888e-05,2]
[347711074,1736076655366,-500.0,8.219e-05,2]
[347711075,1736076655375,-342.20452302,8.888e-05,2]
[347711076,1736076655387,-33000.2508894,8.888e-05,2]
[347711077,1736076655407,-500.0,8.219e-05,2]
[347711078,1736076655416,-384.99999998,8.888e-05,2]
[347711079,1736076655427,-3142.80000004,8.888e-05,2]
[347711080,1736076655439,-4090.91701531,8.888e-05,2]
[347711081,1736076655451,-1627.05411205,8.888e-05,2]
[347711082,1736076655471,-343.48470714,8.218e-05,2]
[347711083,1736076655483,-156.51529286,8.218e-05,2]
[347711084,1736076655492,-184.09353515,8.888e-05,2]
[347711085,1736076655518,-500.0,8.218e-05,2]
[347711086,1736076655528,-51978.10989398,8.888e-05,2]
[347711087,1736076655918,-500.0,8.219e-05,2]
[347711088,1736076655927,-61.17,8.888e-05,2]
[347711089,1736076656612,-504.71014393,8.218e-05,2]
[347711090,1736076656622,-500.0,8.219e-05,2]
[347711091,1736076656631,-396.49,8.493e-05,2]
[347711092,1736076656640,-170.27238867,8.888e-05,2]
[347711093,1736076656653,-2042.3655,8.888e-05,2]
[347711094,1736076656664,-337.6699995,8.888e-05,2]
[347711095,1736076656682,-488.98,8.888e-05,2]
[347711096,1736076656694,-3951.0,8.888e-05,2]
[347711097,1736076656723,-300.75301768,8.218e-05,2]
[347711102,1736076848656,500.0,0.0002,120]
[347711103,1736076875810,1000.0,0.00022,120]
[347711120,1736077808899,500.0,0.0002,120]
[347711121,1736077809153,500.0,0.0002,120]
[347711122,1736077809409,500.0,0.0002,120]
[347711123,1736077809679,500.0,0.0002,120]
[347711136,1736077832527,-200.0,7.488e-05,2]
[347711137,1736077832537,-637.54,7.544e-05,2]
[347711138,1736077832546,-1500.0,7.73e-05,2]
[347711139,1736077832555,-185.4,7.771e-05,2]
[347711140,1736077832565,-250.0,7.803e-05,2]
[347711141,1736077832574,-300.0,7.834e-05,2]
[347711142,1736077832584,-300.0,7.9e-05,2]
[347711144,1736077832593,-250.0,7.902e-05,2]
[347711146,1736077832602,-150.0,7.989e-05,2]
[347711147,1736077832610,-150.0,8e-05,2]
[347711148,1736077832619,-700.0,8e-05,2]
[347711149,1736077832628,-300.0,8.035e-05,2]